[Event "*** Titled Tuesday Blitz"]
[Site "Chess.com"]
[Date "2020.04.07"]
[Round "1"]
[White "poliplaza"]
[Black "MarcoRiehle"]
[Result "0-1"]
[WhiteElo "2353"]
[BlackElo "2693"]
[TimeControl "180+1"]
[EndTime "13:01:38 PDT"]
[Termination "MarcoRiehle won by checkmate"]

1. d4 {[%clk 0:02:59.5]} 1... d5 {[%clk 0:02:55.4]} 2. c4 {[%clk 0:03:00]} 2...
e6 {[%clk 0:02:54.9]} 3. Nc3 {[%clk 0:03:00.5]} 3... c5 {[%clk 0:02:53.9]} 4.
cxd5 {[%clk 0:03:00.2]} 4... cxd4 {[%clk 0:02:54]} 5. Qxd4 {[%clk 0:02:59.9]}
5... Nc6 {[%clk 0:02:53.8]} 6. Qc4 {[%clk 0:03:00]} 6... exd5 {[%clk 0:02:54.7]}
7. Qxd5 {[%clk 0:02:56.9]} 7... Be6 {[%clk 0:02:54.4]} 8. Qxd8+ {[%clk
0:02:39.5]} 8... Rxd8 {[%clk 0:02:55.3]} 9. Bd2 {[%clk 0:02:38.8]} 9... Nb4
{[%clk 0:02:54.9]} 10. O-O-O {[%clk 0:02:38.5]} 10... Nxa2+ {[%clk 0:02:54.5]}
11. Nxa2 {[%clk 0:02:38]} 11... Bxa2 {[%clk 0:02:55.4]} 12. Nf3 {[%clk
0:02:31.6]} 12... Bb3 {[%clk 0:02:53.7]} 13. Re1 {[%clk 0:02:31.5]} 13... Nf6
{[%clk 0:02:53.9]} 14. e4 {[%clk 0:02:29]} 14... Bc5 {[%clk 0:02:51.8]} 15. Be3
{[%clk 0:02:24.9]} 15... Bxe3+ {[%clk 0:02:49.6]} 16. Rxe3 {[%clk 0:02:24.8]}
16... Rd1# {[%clk 0:02:49.1]} 0-1

[Event "*** Titled Tuesday Blitz"]
[Site "Chess.com"]
[Date "2020.04.07"]
[Round "1"]
[White "W_Amadeus"]
[Black "golem2007"]
[Result "1-0"]
[WhiteElo "2756"]
[BlackElo "2403"]
[TimeControl "180+1"]
[EndTime "13:02:29 PDT"]
[Termination "W_Amadeus won by resignation"]

1. e4 {[%clk 0:03:00.9]} 1... c5 {[%clk 0:02:55]} 2. Nf3 {[%clk 0:03:00.9]} 2...
d6 {[%clk 0:02:54.9]} 3. d4 {[%clk 0:03:01.3]} 3... cxd4 {[%clk 0:02:55.8]} 4.
Nxd4 {[%clk 0:03:02.2]} 4... Nf6 {[%clk 0:02:56.3]} 5. Nc3 {[%clk 0:03:02.8]}
5... g6 {[%clk 0:02:56.6]} 6. Be3 {[%clk 0:02:58.8]} 6... a6 {[%clk 0:02:56.6]}
7. f3 {[%clk 0:02:55.9]} 7... Bg7 {[%clk 0:02:57]} 8. Qd2 {[%clk 0:02:54.2]}
8... O-O {[%clk 0:02:57.1]} 9. O-O-O {[%clk 0:02:51.4]} 9... b5 {[%clk
0:02:51.4]} 10. Bh6 {[%clk 0:02:40.2]} 10... Bb7 {[%clk 0:02:48.2]} 11. h4
{[%clk 0:02:31.7]} 11... Nc6 {[%clk 0:02:37]} 12. Nxc6 {[%clk 0:02:27.3]} 12...
Bxc6 {[%clk 0:02:36.3]} 13. h5 {[%clk 0:02:27.7]} 13... Nxh5 {[%clk 0:02:03.3]}
14. Rxh5 {[%clk 0:02:24.3]} 14... gxh5 {[%clk 0:02:01.6]} 15. Qg5 {[%clk
0:02:23.9]} 1-0

[Event "*** Titled Tuesday Blitz"]
[Site "Chess.com"]
[Date "2020.04.07"]
[Round "1"]
[White "semchik73"]
[Black "JustaTrickstar"]
[Result "0-1"]
[WhiteElo "2319"]
[BlackElo "2651"]
[TimeControl "180+1"]
[EndTime "13:02:53 PDT"]
[Termination "JustaTrickstar won by resignation"]

1. Nf3 {[%clk 0:02:59.8]} 1... d5 {[%clk 0:02:59.8]} 2. c4 {[%clk 0:02:59.2]}
2... e6 {[%clk 0:02:58.8]} 3. d4 {[%clk 0:02:58.9]} 3... Nf6 {[%clk 0:02:58.9]}
4. Nc3 {[%clk 0:02:59.3]} 4... Nbd7 {[%clk 0:02:58.4]} 5. Bg5 {[%clk 0:02:59.3]}
5... h6 {[%clk 0:02:58.3]} 6. Bh4 {[%clk 0:02:59.1]} 6... Be7 {[%clk 0:02:58.9]}
7. e3 {[%clk 0:02:58.8]} 7... O-O {[%clk 0:02:58.6]} 8. Bd3 {[%clk 0:02:59]}
8... c5 {[%clk 0:02:57.7]} 9. cxd5 {[%clk 0:02:58]} 9... Nxd5 {[%clk 0:02:57.1]}
10. Bxe7 {[%clk 0:02:57.2]} 10... Qxe7 {[%clk 0:02:52.8]} 11. O-O {[%clk
0:02:56.4]} 11... b6 {[%clk 0:02:47.5]} 12. e4 {[%clk 0:02:55.3]} 12... Nxc3
{[%clk 0:02:40.8]} 13. bxc3 {[%clk 0:02:54.8]} 13... Bb7 {[%clk 0:02:21.4]} 14.
e5 {[%clk 0:02:54.7]} 14... cxd4 {[%clk 0:02:14.5]} 15. cxd4 {[%clk 0:02:54.3]}
15... Rfd8 {[%clk 0:02:14.3]} 16. Qe2 {[%clk 0:02:53.1]} 16... Rac8 {[%clk
0:02:12.7]} 17. Rac1 {[%clk 0:02:52.3]} 17... Nf8 {[%clk 0:02:10.3]} 18. Be4
{[%clk 0:02:43]} 18... Bxe4 {[%clk 0:02:09.6]} 19. Qxe4 {[%clk 0:02:42.1]} 19...
Qa3 {[%clk 0:02:10.2]} 20. Rxc8 {[%clk 0:02:32.2]} 20... Rxc8 {[%clk 0:02:11.1]}
21. Qb7 {[%clk 0:02:32.3]} 21... Rc2 {[%clk 0:02:07.9]} 22. d5 {[%clk
0:02:31.2]} 22... exd5 {[%clk 0:02:07.6]} 23. Qxd5 {[%clk 0:02:30.6]} 23... Qxa2
{[%clk 0:02:06.8]} 24. Qd8 {[%clk 0:02:29.5]} 24... b5 {[%clk 0:02:01.6]} 25.
Nd4 {[%clk 0:02:28.2]} 25... Rd2 {[%clk 0:02:01.4]} 26. e6 {[%clk 0:02:28.3]}
26... fxe6 {[%clk 0:01:58.7]} 27. Qh4 {[%clk 0:02:26.9]} 27... Qc4 {[%clk
0:01:54.2]} 0-1

[Event "*** Titled Tuesday Blitz"]
[Site "Chess.com"]
[Date "2020.04.07"]
[Round "1"]
[White "almo64"]
[Black "Rubinstein_Akiba"]
[Result "1-0"]
[WhiteElo "2761"]
[BlackElo "2357"]
[TimeControl "180+1"]
[EndTime "13:03:04 PDT"]
[Termination "almo64 won by resignation"]

1. e4 {[%clk 0:02:59.2]} 1... c5 {[%clk 0:02:59.5]} 2. Nf3 {[%clk 0:02:59.1]}
2... d6 {[%clk 0:03:00]} 3. d4 {[%clk 0:02:58.3]} 3... cxd4 {[%clk 0:03:00.9]}
4. Nxd4 {[%clk 0:02:58.9]} 4... Nf6 {[%clk 0:03:01.8]} 5. Nc3 {[%clk 0:02:59.3]}
5... a6 {[%clk 0:03:02.4]} 6. Rg1 {[%clk 0:02:57.6]} 6... e5 {[%clk 0:03:02]} 7.
Nb3 {[%clk 0:02:52.4]} 7... Be6 {[%clk 0:03:02.4]} 8. g4 {[%clk 0:02:52]} 8...
Be7 {[%clk 0:03:02.6]} 9. g5 {[%clk 0:02:51.9]} 9... Nfd7 {[%clk 0:03:02.7]} 10.
Nd5 {[%clk 0:02:52.3]} 10... Bxd5 {[%clk 0:02:57.1]} 11. exd5 {[%clk 0:02:48.6]}
11... b5 {[%clk 0:02:44.2]} 12. a4 {[%clk 0:02:47.3]} 12... bxa4 {[%clk
0:02:40.8]} 13. Rxa4 {[%clk 0:02:47.4]} 13... Nb6 {[%clk 0:02:41]} 14. Ra5
{[%clk 0:02:34.3]} 14... N8d7 {[%clk 0:02:27.4]} 15. Bd3 {[%clk 0:02:30.2]}
15... Nc5 {[%clk 0:02:05.9]} 16. Nxc5 {[%clk 0:02:29.5]} 16... dxc5 {[%clk
0:02:04.6]} 17. c4 {[%clk 0:02:25.3]} 17... Nxc4 {[%clk 0:01:53.8]} 18. Qa4+
{[%clk 0:02:24.8]} 18... Kf8 {[%clk 0:01:50.4]} 19. Bxc4 {[%clk 0:02:24.8]}
19... Rb8 {[%clk 0:01:51]} 20. Rxa6 {[%clk 0:02:20.5]} 20... Rb4 {[%clk
0:01:49.5]} 21. Qa2 {[%clk 0:02:19.7]} 21... Qb8 {[%clk 0:01:47.8]} 22. Ra8
{[%clk 0:02:18.6]} 1-0

[Event "*** Titled Tuesday Blitz"]
[Site "Chess.com"]
[Date "2020.04.07"]
[Round "1"]
[White "ninjaturtle04"]
[Black "AndreyNeves"]
[Result "1-0"]
[WhiteElo "2551"]
[BlackElo "2171"]
[TimeControl "180+1"]
[EndTime "13:03:13 PDT"]
[Termination "ninjaturtle04 won by resignation"]

1. e4 {[%clk 0:02:58.8]} 1... c5 {[%clk 0:02:59.5]} 2. Nf3 {[%clk 0:02:57.7]}
2... Nc6 {[%clk 0:02:59.2]} 3. Bb5 {[%clk 0:02:56.7]} 3... g6 {[%clk 0:02:57.6]}
4. Bxc6 {[%clk 0:02:56.3]} 4... dxc6 {[%clk 0:02:56.4]} 5. d3 {[%clk 0:02:55.2]}
5... Bg7 {[%clk 0:02:55]} 6. h3 {[%clk 0:02:55.7]} 6... e5 {[%clk 0:02:51.8]} 7.
Nc3 {[%clk 0:02:55]} 7... b6 {[%clk 0:02:46.7]} 8. Be3 {[%clk 0:02:55]} 8... f6
{[%clk 0:02:44.5]} 9. a3 {[%clk 0:02:50.8]} 9... a5 {[%clk 0:02:42.3]} 10. O-O
{[%clk 0:02:46.8]} 10... Nh6 {[%clk 0:02:41.8]} 11. Na4 {[%clk 0:02:43.6]} 11...
Nf7 {[%clk 0:02:38.3]} 12. b4 {[%clk 0:02:40.4]} 12... axb4 {[%clk 0:02:29.3]}
13. axb4 {[%clk 0:02:38.4]} 13... O-O {[%clk 0:02:16.6]} 14. bxc5 {[%clk
0:02:35.9]} 14... b5 {[%clk 0:02:15.8]} 15. Nb6 {[%clk 0:02:36.1]} 15... Rxa1
{[%clk 0:02:13.7]} 16. Qxa1 {[%clk 0:02:34.8]} 16... Be6 {[%clk 0:02:13.6]} 17.
d4 {[%clk 0:02:30.6]} 17... exd4 {[%clk 0:02:10.9]} 18. Nxd4 {[%clk 0:02:29.7]}
18... Bd7 {[%clk 0:01:56.9]} 19. Qa7 {[%clk 0:02:25.1]} 19... Be8 {[%clk
0:01:41.5]} 20. Ne6 {[%clk 0:02:18]} 1-0

[Event "*** Titled Tuesday Blitz"]
[Site "Chess.com"]
[Date "2020.04.07"]
[Round "1"]
[White "Gogolev_Artemy"]
[Black "jefferyx"]
[Result "0-1"]
[WhiteElo "2461"]
[BlackElo "2896"]
[TimeControl "180+1"]
[EndTime "13:03:21 PDT"]
[Termination "jefferyx won by resignation"]

1. d4 {[%clk 0:02:57.6]} 1... g6 {[%clk 0:02:58.6]} 2. Nf3 {[%clk 0:02:56]} 2...
Bg7 {[%clk 0:02:58.9]} 3. c4 {[%clk 0:02:56.2]} 3... d6 {[%clk 0:02:59.4]} 4. g3
{[%clk 0:02:56.4]} 4... Nc6 {[%clk 0:02:58.5]} 5. Bg2 {[%clk 0:02:56.1]} 5...
Bd7 {[%clk 0:02:59.1]} 6. O-O {[%clk 0:02:55.8]} 6... Qc8 {[%clk 0:02:59.8]} 7.
Re1 {[%clk 0:02:55.2]} 7... Bh3 {[%clk 0:02:59.5]} 8. Bh1 {[%clk 0:02:52.6]}
8... h5 {[%clk 0:02:59.6]} 9. d5 {[%clk 0:02:50.2]} 9... Ne5 {[%clk 0:02:59.5]}
10. Nxe5 {[%clk 0:02:50.2]} 10... Bxe5 {[%clk 0:03:00.4]} 11. Nc3 {[%clk
0:02:46.4]} 11... h4 {[%clk 0:03:00.4]} 12. Qa4+ {[%clk 0:02:40.3]} 12... Kf8
{[%clk 0:02:43.1]} 13. Be3 {[%clk 0:02:40]} 13... Nf6 {[%clk 0:02:35.7]} 14.
Rad1 {[%clk 0:02:36.2]} 14... Qf5 {[%clk 0:02:17.9]} 15. c5 {[%clk 0:02:15.4]}
15... Qh5 {[%clk 0:02:12]} 16. Bf4 {[%clk 0:01:49.3]} 16... hxg3 {[%clk
0:02:07.3]} 17. hxg3 {[%clk 0:01:44.8]} 17... Bd7 {[%clk 0:02:06]} 18. Bg2
{[%clk 0:01:35.6]} 18... Bxa4 {[%clk 0:01:58.7]} 0-1

[Event "*** Titled Tuesday Blitz"]
[Site "Chess.com"]
[Date "2020.04.07"]
[Round "1"]
[White "swisspower96"]
[Black "AEMEffi"]
[Result "1-0"]
[WhiteElo "2679"]
[BlackElo "2336"]
[TimeControl "180+1"]
[EndTime "13:03:29 PDT"]
[Termination "swisspower96 won by resignation"]

1. d4 {[%clk 0:03:00.9]} 1... d5 {[%clk 0:02:59.6]} 2. c4 {[%clk 0:03:00.8]}
2... c6 {[%clk 0:02:59.9]} 3. Nf3 {[%clk 0:02:59.5]} 3... Nf6 {[%clk 0:03:00.3]}
4. e3 {[%clk 0:02:58.5]} 4... a6 {[%clk 0:03:00.5]} 5. Nc3 {[%clk 0:02:54.2]}
5... b5 {[%clk 0:03:00]} 6. b3 {[%clk 0:02:47.2]} 6... Bf5 {[%clk 0:03:00.3]} 7.
Be2 {[%clk 0:02:35.8]} 7... e6 {[%clk 0:03:00.4]} 8. O-O {[%clk 0:02:35.9]} 8...
h6 {[%clk 0:02:59.9]} 9. Bb2 {[%clk 0:02:34.4]} 9... Be7 {[%clk 0:03:00]} 10.
Ne5 {[%clk 0:02:34.5]} 10... O-O {[%clk 0:03:00.2]} 11. Rc1 {[%clk 0:02:26.2]}
11... Nfd7 {[%clk 0:02:59.7]} 12. f4 {[%clk 0:02:22.8]} 12... f6 {[%clk
0:02:57]} 13. Nf3 {[%clk 0:02:05.7]} 13... Bd6 {[%clk 0:02:47.8]} 14. Nh4 {[%clk
0:01:59.3]} 14... Bh7 {[%clk 0:02:47.2]} 15. Bh5 {[%clk 0:01:55.7]} 15... f5
{[%clk 0:02:39.1]} 16. Qe1 {[%clk 0:01:50.6]} 16... Nf6 {[%clk 0:02:37.6]} 17.
Bg6 {[%clk 0:01:45.3]} 17... Bxg6 {[%clk 0:02:34.4]} 18. Nxg6 {[%clk 0:01:45.4]}
18... Re8 {[%clk 0:02:34.8]} 19. Ne5 {[%clk 0:01:45.2]} 19... Bxe5 {[%clk
0:02:33.4]} 20. fxe5 {[%clk 0:01:43.4]} 20... Ne4 {[%clk 0:02:32.3]} 21. Nxe4
{[%clk 0:01:43.3]} 21... dxe4 {[%clk 0:02:31.8]} 22. Ba3 {[%clk 0:01:41.6]}
22... Nd7 {[%clk 0:02:30.8]} 23. Bd6 {[%clk 0:01:41.8]} 23... Nb6 {[%clk
0:02:25.7]} 24. cxb5 {[%clk 0:01:37.7]} 24... cxb5 {[%clk 0:02:25]} 25. Bc7
{[%clk 0:01:37.6]} 1-0

[Event "*** Titled Tuesday Blitz"]
[Site "Chess.com"]
[Date "2020.04.07"]
[Round "1"]
[White "matiss90"]
[Black "cukin84"]
[Result "1/2-1/2"]
[WhiteElo "2515"]
[BlackElo "2109"]
[TimeControl "180+1"]
[EndTime "13:03:33 PDT"]
[Termination "Game drawn by agreement"]

1. e4 {[%clk 0:02:52.4]} 1... c6 {[%clk 0:02:59.7]} 2. d4 {[%clk 0:02:52.1]}
2... d5 {[%clk 0:02:59.7]} 3. Nc3 {[%clk 0:02:53]} 3... a6 {[%clk 0:02:59.1]} 4.
Nf3 {[%clk 0:02:48.2]} 4... Bg4 {[%clk 0:02:58.2]} 5. h3 {[%clk 0:02:47.5]} 5...
Bxf3 {[%clk 0:02:57.9]} 6. Qxf3 {[%clk 0:02:48.4]} 6... e6 {[%clk 0:02:58.1]} 7.
Bd3 {[%clk 0:02:45.5]} 7... Nf6 {[%clk 0:02:57.7]} 8. O-O {[%clk 0:02:44.5]}
8... dxe4 {[%clk 0:02:56.3]} 9. Nxe4 {[%clk 0:02:44.1]} 9... Nbd7 {[%clk
0:02:56.3]} 10. c4 {[%clk 0:02:35.8]} 10... Nxe4 {[%clk 0:02:55.7]} 11. Bxe4
{[%clk 0:02:34.9]} 11... Nf6 {[%clk 0:02:55.9]} 12. Be3 {[%clk 0:02:27.5]} 12...
Nxe4 {[%clk 0:02:53.5]} 13. Qxe4 {[%clk 0:02:28.4]} 13... Be7 {[%clk 0:02:53.8]}
14. Rfd1 {[%clk 0:02:10.1]} 14... O-O {[%clk 0:02:53.4]} 15. b3 {[%clk
0:02:01.3]} 15... Bf6 {[%clk 0:02:52.5]} 16. Rac1 {[%clk 0:02:00.5]} 16... g6
{[%clk 0:02:51.1]} 17. a4 {[%clk 0:01:52.4]} 17... Re8 {[%clk 0:02:49.5]} 18.
Qf3 {[%clk 0:01:47]} 18... Bg7 {[%clk 0:02:48.7]} 19. g3 {[%clk 0:01:45.5]}
19... Qa5 {[%clk 0:02:44.1]} 20. h4 {[%clk 0:01:43.9]} 20... h5 {[%clk
0:02:42.5]} 21. Kg2 {[%clk 0:01:40.4]} 21... Rad8 {[%clk 0:02:38.8]} 22. Qe4
{[%clk 0:01:25.5]} 22... Qb4 {[%clk 0:02:34]} 23. Qc2 {[%clk 0:01:25]} 1/2-1/2

[Event "*** Titled Tuesday Blitz"]
[Site "Chess.com"]
[Date "2020.04.07"]
[Round "1"]
[White "wild_cat99"]
[Black "Quiet_Desperation"]
[Result "1-0"]
[WhiteElo "2519"]
[BlackElo "2036"]
[TimeControl "180+1"]
[EndTime "13:03:38 PDT"]
[Termination "wild_cat99 won by resignation"]

1. Nf3 {[%clk 0:02:58.6]} 1... Nf6 {[%clk 0:02:56.7]} 2. c4 {[%clk 0:02:57.3]}
2... e6 {[%clk 0:02:56.7]} 3. e3 {[%clk 0:02:57.3]} 3... d5 {[%clk 0:02:56.2]}
4. b3 {[%clk 0:02:57.3]} 4... Be7 {[%clk 0:02:56]} 5. Nc3 {[%clk 0:02:57.8]}
5... O-O {[%clk 0:02:56.5]} 6. Bb2 {[%clk 0:02:58.3]} 6... c6 {[%clk 0:02:57]}
7. g3 {[%clk 0:02:58.6]} 7... b6 {[%clk 0:02:57.4]} 8. Bg2 {[%clk 0:02:59]} 8...
Nbd7 {[%clk 0:02:55.7]} 9. O-O {[%clk 0:02:59.9]} 9... Bb7 {[%clk 0:02:55.6]}
10. d4 {[%clk 0:02:59.7]} 10... Rc8 {[%clk 0:02:54.6]} 11. Rc1 {[%clk
0:02:57.6]} 11... Re8 {[%clk 0:02:54.5]} 12. Qc2 {[%clk 0:02:57.8]} 12... Ba6
{[%clk 0:02:47.7]} 13. Nd2 {[%clk 0:02:52.5]} 13... c5 {[%clk 0:02:43.2]} 14.
dxc5 {[%clk 0:02:40.9]} 14... Nxc5 {[%clk 0:02:41.5]} 15. b4 {[%clk 0:02:40.8]}
15... Nce4 {[%clk 0:02:38.1]} 16. Ncxe4 {[%clk 0:02:27.1]} 16... Nxe4 {[%clk
0:02:34.9]} 17. Nxe4 {[%clk 0:02:10.9]} 17... dxe4 {[%clk 0:02:33.3]} 18. Rfd1
{[%clk 0:02:10.6]} 18... Qc7 {[%clk 0:02:27.1]} 19. Bxe4 {[%clk 0:02:10.3]}
19... Qxc4 {[%clk 0:02:16.9]} 20. Bxh7+ {[%clk 0:02:09.9]} 20... Kh8 {[%clk
0:02:17.1]} 21. Qxc4 {[%clk 0:02:06.1]} 21... Rxc4 {[%clk 0:02:11.5]} 22. Rxc4
{[%clk 0:02:01.5]} 22... Bxc4 {[%clk 0:02:11.3]} 23. Be4 {[%clk 0:02:02.4]}
23... Rd8 {[%clk 0:02:01.6]} 24. Rc1 {[%clk 0:01:59.2]} 24... Bxa2 {[%clk
0:01:53.3]} 25. Ra1 {[%clk 0:01:54.5]} 25... Bd5 {[%clk 0:01:48.1]} 26. Bxd5
{[%clk 0:01:53.6]} 26... Rxd5 {[%clk 0:01:47.6]} 27. Rxa7 {[%clk 0:01:54]} 27...
Bxb4 {[%clk 0:01:47]} 28. Rxf7 {[%clk 0:01:53.1]} 1-0

[Event "*** Titled Tuesday Blitz"]
[Site "Chess.com"]
[Date "2020.04.07"]
[Round "1"]
[White "DryCounty"]
[Black "AlphaZ3r0"]
[Result "1-0"]
[WhiteElo "2602"]
[BlackElo "2260"]
[TimeControl "180+1"]
[EndTime "13:03:39 PDT"]
[Termination "DryCounty won by checkmate"]

1. e4 {[%clk 0:03:00.9]} 1... c5 {[%clk 0:02:55.3]} 2. Nf3 {[%clk 0:03:00.2]}
2... e6 {[%clk 0:02:54.9]} 3. d4 {[%clk 0:03:00.2]} 3... cxd4 {[%clk 0:02:55.8]}
4. Nxd4 {[%clk 0:03:01.1]} 4... Nc6 {[%clk 0:02:56.4]} 5. Nc3 {[%clk 0:03:01]}
5... Qc7 {[%clk 0:02:55.9]} 6. g3 {[%clk 0:03:00.5]} 6... a6 {[%clk 0:02:53.5]}
7. Bg2 {[%clk 0:03:00.4]} 7... Nf6 {[%clk 0:02:52.4]} 8. O-O {[%clk 0:03:00.5]}
8... h5 {[%clk 0:02:52]} 9. h3 {[%clk 0:02:59.3]} 9... Nxd4 {[%clk 0:02:45.9]}
10. Qxd4 {[%clk 0:02:58.5]} 10... Bc5 {[%clk 0:02:46.4]} 11. Bf4 {[%clk
0:02:57.8]} 11... d6 {[%clk 0:02:46.4]} 12. Qd2 {[%clk 0:02:57.1]} 12... e5
{[%clk 0:02:35.1]} 13. Bg5 {[%clk 0:02:55.1]} 13... Nh7 {[%clk 0:02:35]} 14. Nd5
{[%clk 0:02:51.7]} 14... Qc6 {[%clk 0:02:03.1]} 15. Be3 {[%clk 0:02:45.6]} 15...
Nf8 {[%clk 0:01:55.3]} 16. Bxc5 {[%clk 0:02:39.7]} 16... dxc5 {[%clk 0:01:56.2]}
17. f4 {[%clk 0:02:16.4]} 17... h4 {[%clk 0:01:50.3]} 18. f5 {[%clk 0:02:09.6]}
18... hxg3 {[%clk 0:01:46.9]} 19. Qg5 {[%clk 0:02:07.9]} 19... Rh7 {[%clk
0:01:14.7]} 20. Qe7# {[%clk 0:02:06.9]} 1-0

[Event "*** Titled Tuesday Blitz"]
[Site "Chess.com"]
[Date "2020.04.07"]
[Round "1"]
[White "Shukh_Nikolay"]
[Black "tteshan"]
[Result "1-0"]
[WhiteElo "2555"]
[BlackElo "2189"]
[TimeControl "180+1"]
[EndTime "13:03:39 PDT"]
[Termination "Shukh_Nikolay won by resignation"]

1. d4 {[%clk 0:03:00.4]} 1... d5 {[%clk 0:02:58]} 2. c4 {[%clk 0:02:59.7]} 2...
dxc4 {[%clk 0:02:57.8]} 3. Nf3 {[%clk 0:02:59.3]} 3... Nf6 {[%clk 0:02:55.3]} 4.
a4 {[%clk 0:02:55]} 4... e6 {[%clk 0:02:52]} 5. e3 {[%clk 0:02:54.6]} 5... Bd6
{[%clk 0:02:50]} 6. Nbd2 {[%clk 0:02:52.4]} 6... O-O {[%clk 0:02:49.4]} 7. Nxc4
{[%clk 0:02:51.9]} 7... a6 {[%clk 0:02:49.4]} 8. Bd3 {[%clk 0:02:50.9]} 8... Nc6
{[%clk 0:02:47]} 9. O-O {[%clk 0:02:49.8]} 9... Re8 {[%clk 0:02:43.8]} 10. b3
{[%clk 0:02:46.8]} 10... b6 {[%clk 0:02:42.1]} 11. Bb2 {[%clk 0:02:45.9]} 11...
Bb7 {[%clk 0:02:42]} 12. Rc1 {[%clk 0:02:45.2]} 12... Nb4 {[%clk 0:02:38.2]} 13.
Bb1 {[%clk 0:02:44.5]} 13... Bf8 {[%clk 0:02:27.3]} 14. Nfe5 {[%clk 0:02:40.1]}
14... c5 {[%clk 0:02:24.8]} 15. a5 {[%clk 0:02:35]} 15... bxa5 {[%clk
0:02:06.9]} 16. dxc5 {[%clk 0:02:33.9]} 16... Bxc5 {[%clk 0:02:06.6]} 17. Qxd8
{[%clk 0:02:32.4]} 17... Rexd8 {[%clk 0:01:42.4]} 18. Nxa5 {[%clk 0:02:27.8]}
1-0

[Event "*** Titled Tuesday Blitz"]
[Site "Chess.com"]
[Date "2020.04.07"]
[Round "1"]
[White "Stormeman100100"]
[Black "gena217"]
[Result "0-1"]
[WhiteElo "2474"]
[BlackElo "2940"]
[TimeControl "180+1"]
[EndTime "13:03:46 PDT"]
[Termination "gena217 won by resignation"]

1. e4 {[%clk 0:03:00.3]} 1... c6 {[%clk 0:02:59.6]} 2. d4 {[%clk 0:02:59.8]}
2... d5 {[%clk 0:03:00.5]} 3. e5 {[%clk 0:02:58.8]} 3... Bf5 {[%clk 0:02:59.2]}
4. Nf3 {[%clk 0:02:58.9]} 4... e6 {[%clk 0:02:59.6]} 5. Be2 {[%clk 0:02:59.2]}
5... Ne7 {[%clk 0:02:59.9]} 6. O-O {[%clk 0:02:59.4]} 6... c5 {[%clk 0:03:00.5]}
7. c4 {[%clk 0:02:55.5]} 7... Nbc6 {[%clk 0:03:00.2]} 8. cxd5 {[%clk 0:02:55.3]}
8... Nxd5 {[%clk 0:02:58.6]} 9. Nc3 {[%clk 0:02:53]} 9... Nxc3 {[%clk
0:02:47.6]} 10. bxc3 {[%clk 0:02:53.9]} 10... Be7 {[%clk 0:02:48]} 11. Be3
{[%clk 0:02:51.7]} 11... O-O {[%clk 0:02:47.3]} 12. Qd2 {[%clk 0:02:51.5]} 12...
Qc7 {[%clk 0:02:42.1]} 13. h3 {[%clk 0:02:43.3]} 13... Rfd8 {[%clk 0:02:41.3]}
14. Qb2 {[%clk 0:02:40.6]} 14... Be4 {[%clk 0:02:27.9]} 15. Rfd1 {[%clk
0:02:39.3]} 15... h6 {[%clk 0:02:26]} 16. Rac1 {[%clk 0:02:36.9]} 16... Rab8
{[%clk 0:02:18.2]} 17. Bf4 {[%clk 0:02:31.8]} 17... b5 {[%clk 0:02:08.3]} 18.
Qd2 {[%clk 0:02:09.3]} 18... cxd4 {[%clk 0:01:58.1]} 19. cxd4 {[%clk 0:02:08.5]}
19... Qb7 {[%clk 0:01:58.7]} 20. Qe3 {[%clk 0:02:07.8]} 20... Nb4 {[%clk
0:01:57.8]} 21. Rd2 {[%clk 0:01:47.7]} 21... Rbc8 {[%clk 0:01:55]} 22. Rxc8
{[%clk 0:01:46.4]} 22... Rxc8 {[%clk 0:01:55.9]} 23. a3 {[%clk 0:01:40.9]} 23...
Nc2 {[%clk 0:01:51.1]} 24. Qb3 {[%clk 0:01:40.5]} 24... Nxa3 {[%clk 0:01:51.4]}
25. Ra2 {[%clk 0:01:39.1]} 25... b4 {[%clk 0:01:49.6]} 26. Rxa3 {[%clk
0:01:37.5]} 26... bxa3 {[%clk 0:01:49.4]} 0-1

[Event "*** Titled Tuesday Blitz"]
[Site "Chess.com"]
[Date "2020.04.07"]
[Round "1"]
[White "artooon"]
[Black "Gerasimenyuk_Miha"]
[Result "1-0"]
[WhiteElo "2714"]
[BlackElo "2366"]
[TimeControl "180+1"]
[EndTime "13:03:47 PDT"]
[Termination "artooon won by resignation"]

1. e4 {[%clk 0:03:00.9]} 1... c6 {[%clk 0:02:59.7]} 2. d4 {[%clk 0:03:00.4]}
2... d5 {[%clk 0:02:59.7]} 3. e5 {[%clk 0:03:01]} 3... c5 {[%clk 0:02:59.9]} 4.
dxc5 {[%clk 0:02:59.7]} 4... Nc6 {[%clk 0:03:00.1]} 5. Nf3 {[%clk 0:03:00]} 5...
Bg4 {[%clk 0:02:59.7]} 6. c3 {[%clk 0:03:00.3]} 6... a5 {[%clk 0:02:59.5]} 7.
Bb5 {[%clk 0:02:56.3]} 7... e6 {[%clk 0:02:59.1]} 8. Qa4 {[%clk 0:02:52.6]} 8...
Bxf3 {[%clk 0:02:57.9]} 9. Bxc6+ {[%clk 0:02:52.5]} 9... bxc6 {[%clk 0:02:58.8]}
10. Qxc6+ {[%clk 0:02:53.4]} 10... Ke7 {[%clk 0:02:59.1]} 11. gxf3 {[%clk
0:02:47.3]} 11... Rc8 {[%clk 0:02:58.7]} 12. Qd6+ {[%clk 0:02:27.9]} 12... Ke8
{[%clk 0:02:57.4]} 13. Qxd8+ {[%clk 0:02:27.3]} 13... Kxd8 {[%clk 0:02:55.4]}
14. b4 {[%clk 0:02:27.5]} 14... f6 {[%clk 0:02:54.2]} 15. f4 {[%clk 0:02:27.2]}
15... Ne7 {[%clk 0:02:53.5]} 16. exf6 {[%clk 0:02:26]} 16... gxf6 {[%clk
0:02:53.4]} 17. Nd2 {[%clk 0:02:22]} 17... Kd7 {[%clk 0:02:47.6]} 18. Ke2 {[%clk
0:02:18.4]} 18... Bh6 {[%clk 0:02:43.2]} 19. Nb3 {[%clk 0:02:14.6]} 19... a4
{[%clk 0:02:40.8]} 20. Nd4 {[%clk 0:02:14.3]} 20... Nc6 {[%clk 0:02:37.5]} 21.
f5 {[%clk 0:02:06.6]} 21... Nxd4+ {[%clk 0:02:28.7]} 22. cxd4 {[%clk 0:02:06.1]}
22... Bxc1 {[%clk 0:02:26.2]} 23. fxe6+ {[%clk 0:02:06.1]} 23... Kxe6 {[%clk
0:02:25.9]} 24. Rhxc1 {[%clk 0:02:07]} 24... Kf5 {[%clk 0:02:24.1]} 25. Rc3
{[%clk 0:02:02.7]} 25... Rhe8+ {[%clk 0:02:21.4]} 26. Re3 {[%clk 0:02:03]} 26...
Re4 {[%clk 0:02:22.3]} 27. Kd3 {[%clk 0:01:55.4]} 27... a3 {[%clk 0:02:18.3]}
28. b5 {[%clk 0:01:54.6]} 28... Ra8 {[%clk 0:02:17.3]} 29. Rb1 {[%clk
0:01:53.2]} 29... Ra4 {[%clk 0:02:16.9]} 30. Rxe4 {[%clk 0:01:53.3]} 30... dxe4+
{[%clk 0:02:15.8]} 31. Ke3 {[%clk 0:01:54.1]} 31... Rc4 {[%clk 0:02:12.7]} 32.
b6 {[%clk 0:01:54.3]} 32... Rc3+ {[%clk 0:02:12.8]} 33. Kd2 {[%clk 0:01:52.6]}
33... Rd3+ {[%clk 0:02:12.9]} 34. Ke2 {[%clk 0:01:52.8]} 1-0